[Event "Titled Tuesday Blitz June 13 Early 2023"]
[White "Stribuk, Artiom"]
[Black "Agibileg, Uurtsaikh"]
[WhiteFideId "13515659"]
[BlackFideId "4901606"]
[WhiteElo "2303"]
[BlackElo "2353"]
[Result "1-0"]
[Round "8"]
[TimeControl "180+2"]
[Date "2023.06.13"]
[WhiteClock "0:00:10"]
[BlackClock "0:00:08"]
[Board "30"]

1. d4 {[%clk 0:03:00]}  Nf6 {[%clk 0:02:59]} 2. c4 {[%clk 0:03:00]}  g6 {[%clk 0:02:59]} 3. g3 {[%clk 0:02:59]}  Bg7 {[%clk 0:02:59]} 4. Bg2 {[%clk 0:03:00]}  O-O {[%clk 0:02:59]} 5. Nc3 {[%clk 0:03:00]}  d6 {[%clk 0:02:59]} 6. Nf3 {[%clk 0:03:01]}  c5 {[%clk 0:02:59]} 7. d5 {[%clk 0:02:57]}  e6 {[%clk 0:02:59]} 8. O-O {[%clk 0:02:57]}  exd5 {[%clk 0:02:59]} 9. cxd5 {[%clk 0:02:57]}  Re8 {[%clk 0:02:59]} 10. Re1 {[%clk 0:02:58]}  a6 {[%clk 0:02:54]} 11. a4 {[%clk 0:02:42]}  Nbd7 {[%clk 0:02:53]} 12. Bf4 {[%clk 0:02:37]}  Nh5 {[%clk 0:02:51]} 13. Bg5 {[%clk 0:02:33]}  Qc7 {[%clk 0:02:49]} 14. e4 {[%clk 0:02:29]}  Rb8 {[%clk 0:02:41]} 15. a5 {[%clk 0:02:04]}  h6 {[%clk 0:02:39]} 16. Be3 {[%clk 0:01:55]}  Nhf6 {[%clk 0:02:37]} 17. Nd2 {[%clk 0:01:55]}  b5 {[%clk 0:02:36]} 18. axb6 {[%clk 0:01:55]}  Rxb6 {[%clk 0:02:28]} 19. Nc4 {[%clk 0:01:36]}  Rb4 {[%clk 0:02:28]} 20. Ra4 {[%clk 0:01:04]}  Rxc4 {[%clk 0:02:19]} 21. Rxc4 {[%clk 0:01:02]}  Nb6 {[%clk 0:02:18]} 22. b3 {[%clk 0:00:25]}  Ng4 {[%clk 0:02:15]} 23. Bd2 {[%clk 0:00:24]}  Ne5 {[%clk 0:02:14]} 24. Qe2 {[%clk 0:00:19]}  a5 {[%clk 0:02:04]} 25. Nb5 {[%clk 0:00:15]}  Qd7 {[%clk 0:02:04]} 26. Rcc1 {[%clk 0:00:15]}  Ba6 {[%clk 0:02:03]} 27. Bf1 {[%clk 0:00:12]}  Bxb5 {[%clk 0:01:57]} 28. Qxb5 {[%clk 0:00:12]}  Nf3+ {[%clk 0:01:57]} 29. Kg2 {[%clk 0:00:11]}  Nxe1+ {[%clk 0:01:50]} 30. Rxe1 {[%clk 0:00:11]}  Qxb5 {[%clk 0:01:35]} 31. Bxb5 {[%clk 0:00:12]}  Rb8 {[%clk 0:01:35]} 32. Bxa5 {[%clk 0:00:08]}  Nxd5 {[%clk 0:01:35]} 33. Bc4 {[%clk 0:00:07]}  Nb6 {[%clk 0:01:16]} 34. Bxb6 {[%clk 0:00:07]}  Rxb6 {[%clk 0:01:15]} 35. Re2 {[%clk 0:00:08]}  Bd4 {[%clk 0:00:59]} 36. Ra2 {[%clk 0:00:08]}  Rb7 {[%clk 0:00:59]} 37. f4 {[%clk 0:00:08]}  Kf8 {[%clk 0:00:55]} 38. Kf3 {[%clk 0:00:08]}  Ke7 {[%clk 0:00:55]} 39. Ra8 {[%clk 0:00:08]}  h5 {[%clk 0:00:54]} 40. h4 {[%clk 0:00:06]}  Rc7 {[%clk 0:00:53]} 41. Rb8 {[%clk 0:00:05]}  Ra7 {[%clk 0:00:53]} 42. g4 {[%clk 0:00:04]}  hxg4+ {[%clk 0:00:52]} 43. Kxg4 {[%clk 0:00:04]}  Kf6 {[%clk 0:00:52]} 44. Rf8 {[%clk 0:00:04]}  Kg7 {[%clk 0:00:48]} 45. Rd8 {[%clk 0:00:04]}  f5+ {[%clk 0:00:41]} 46. exf5 {[%clk 0:00:04]}  gxf5+ {[%clk 0:00:42]} 47. Kxf5 {[%clk 0:00:05]}  d5 {[%clk 0:00:30]} 48. Bxd5 {[%clk 0:00:03]}  Ra6 {[%clk 0:00:30]} 49. Bc4 {[%clk 0:00:03]}  Rf6+ {[%clk 0:00:29]} 50. Kg4 {[%clk 0:00:04]}  Rg6+ {[%clk 0:00:29]} 51. Kf3 {[%clk 0:00:04]}  Rf6 {[%clk 0:00:28]} 52. Rd7+ {[%clk 0:00:04]}  Kf8 {[%clk 0:00:28]} 53. Kg4 {[%clk 0:00:04]}  Rg6+ {[%clk 0:00:27]} 54. Kf3 {[%clk 0:00:04]}  Rf6 {[%clk 0:00:27]} 55. Ke4 {[%clk 0:00:05]}  Rh6 {[%clk 0:00:27]} 56. Kf5 {[%clk 0:00:03]}  Rxh4 {[%clk 0:00:26]} 57. Kg5 {[%clk 0:00:03]}  Rh2 {[%clk 0:00:23]} 58. Rf7+ {[%clk 0:00:03]}  Ke8 {[%clk 0:00:23]} 59. Ra7 {[%clk 0:00:04]}  Kd8 {[%clk 0:00:20]} 60. Kf5 {[%clk 0:00:03]}  Rh6 {[%clk 0:00:19]} 61. Kg5 {[%clk 0:00:03]}  Rb6 {[%clk 0:00:18]} 62. f5 {[%clk 0:00:03]}  Bf6+ {[%clk 0:00:17]} 63. Kg6 {[%clk 0:00:03]}  Bd4+ {[%clk 0:00:17]} 64. Kg5 {[%clk 0:00:04]}  Be3+ {[%clk 0:00:18]} 65. Kg4 {[%clk 0:00:04]}  Bd4 {[%clk 0:00:18]} 66. Rh7 {[%clk 0:00:04]}  Bf6 {[%clk 0:00:15]} 67. Kf4 {[%clk 0:00:04]}  Bd4 {[%clk 0:00:14]} 68. Ke4 {[%clk 0:00:05]}  Bf6 {[%clk 0:00:14]} 69. Rh6 {[%clk 0:00:05]}  Rd6 {[%clk 0:00:15]} 70. Rg6 {[%clk 0:00:05]}  Rd4+ {[%clk 0:00:15]} 71. Kf3 {[%clk 0:00:05]}  Ke7 {[%clk 0:00:16]} 72. Rh6 {[%clk 0:00:05]}  Rh4 {[%clk 0:00:15]} 73. Rg6 {[%clk 0:00:05]}  Rh3+ {[%clk 0:00:15]} 74. Ke4 {[%clk 0:00:05]}  Rh4+ {[%clk 0:00:16]} 75. Kd5 {[%clk 0:00:06]}  Bd4 {[%clk 0:00:15]} 76. Re6+ {[%clk 0:00:06]}  Kd7 {[%clk 0:00:15]} 77. Bb5+ {[%clk 0:00:06]}  Kc7 {[%clk 0:00:15]} 78. Re7+ {[%clk 0:00:06]}  Kd8 {[%clk 0:00:15]} 79. Re8+ {[%clk 0:00:06]}  Kc7 {[%clk 0:00:15]} 80. Re7+ {[%clk 0:00:07]}  Kb6 {[%clk 0:00:15]} 81. Bc4 {[%clk 0:00:06]}  Rh5 {[%clk 0:00:15]} 82. Rf7 {[%clk 0:00:06]}  Ka5 {[%clk 0:00:13]} 83. Kd6 {[%clk 0:00:06]}  Rh6+ {[%clk 0:00:12]} 84. Ke7 {[%clk 0:00:06]}  Kb6 {[%clk 0:00:10]} 85. f6 {[%clk 0:00:07]}  Kc7 {[%clk 0:00:10]} 86. Rf8 {[%clk 0:00:07]}  Rh2 {[%clk 0:00:04]} 87. Be6 {[%clk 0:00:05]}  Bxf6+ {[%clk 0:00:02]} 88. Rxf6 {[%clk 0:00:05]}  Kb6 {[%clk 0:00:03]} 89. Bc4+ {[%clk 0:00:05]}  Ka5 {[%clk 0:00:04]} 90. Rf8 {[%clk 0:00:05]}  Kb4 {[%clk 0:00:04]} 91. Rb8+ {[%clk 0:00:05]}  Kc3 {[%clk 0:00:04]} 92. Kd6 {[%clk 0:00:06]}  Rh5 {[%clk 0:00:04]} 93. Kc6 {[%clk 0:00:06]}  Kd4 {[%clk 0:00:04]} 94. Kb5 {[%clk 0:00:07]}  Kc3 {[%clk 0:00:03]} 95. Rc8 {[%clk 0:00:07]}  Rh7 {[%clk 0:00:02]} 96. Rxc5 {[%clk 0:00:07]}  Rb7+ {[%clk 0:00:03]} 97. Kc6 {[%clk 0:00:08]}  Rb8 {[%clk 0:00:03]} 98. Rb5 {[%clk 0:00:07]}  Rc8+ {[%clk 0:00:03]} 99. Kd6 {[%clk 0:00:08]}  Rf8 {[%clk 0:00:02]} 100. Rg5 {[%clk 0:00:08]}  Rd8+ {[%clk 0:00:02]} 101. Kc5 {[%clk 0:00:08]}  Rc8+ {[%clk 0:00:02]} 102. Kb6 {[%clk 0:00:08]}  Rb8+ {[%clk 0:00:03]} 103. Kc7 {[%clk 0:00:09]}  Rf8 {[%clk 0:00:03]} 104. Bd5 {[%clk 0:00:09]}  Kb4 {[%clk 0:00:03]} 105. Kd6 {[%clk 0:00:09]}  Rb8 {[%clk 0:00:03]} 106. Ke5 {[%clk 0:00:09]}  Kb5 {[%clk 0:00:03]} 107. Kd4 {[%clk 0:00:09]}  Kb4 {[%clk 0:00:04]} 108. Rg7 {[%clk 0:00:09]}  Rf8 {[%clk 0:00:03]} 109. Rb7+ {[%clk 0:00:09]}  Ka5 {[%clk 0:00:04]} 110. b4+ {[%clk 0:00:09]}  Ka6 {[%clk 0:00:04]} 111. b5+ {[%clk 0:00:08]}  Ka5 {[%clk 0:00:05]} 112. Bc6 {[%clk 0:00:08]}  Rf4+ {[%clk 0:00:05]} 113. Kc5 {[%clk 0:00:09]}  Rf5+ {[%clk 0:00:06]} 114. Kd6 {[%clk 0:00:09]}  Rf6+ {[%clk 0:00:06]} 115. Kc7 {[%clk 0:00:09]}  Rf7+ {[%clk 0:00:07]} 116. Kb8 {[%clk 0:00:10]}  Rf8+ {[%clk 0:00:07]} 117. Ka7 {[%clk 0:00:10]}  Rf4 {[%clk 0:00:07]} 118. Rc7 {[%clk 0:00:10]}  Rb4 {[%clk 0:00:06]} 119. Bd7 {[%clk 0:00:10]}  Rb1 {[%clk 0:00:06]} 120. b6 {[%clk 0:00:08]}  Ra1 {[%clk 0:00:03]} 121. b7 {[%clk 0:00:08]}  Kb4+ {[%clk 0:00:03]} 122. Kb6 {[%clk 0:00:08]}  Rb1 {[%clk 0:00:03]} 123. Bb5 {[%clk 0:00:07]}  Ra1 {[%clk 0:00:02]} 124. b8=Q {[%clk 0:00:07]}  Ra3 {[%clk 0:00:02]} 125. Qf8+ {[%clk 0:00:07]}  Kb3 {[%clk 0:00:02]} 126. Rc3+ {[%clk 0:00:07]}  Kxc3 {[%clk 0:00:02]} 127. Qxa3+ {[%clk 0:00:08]}  Kd4 {[%clk 0:00:03]} 128. Qd3+ {[%clk 0:00:08]}  Ke5 {[%clk 0:00:04]} 129. Qe3+ {[%clk 0:00:08]}  Kf6 {[%clk 0:00:05]} 130. Qe4 {[%clk 0:00:08]}  Kg7 {[%clk 0:00:06]} 131. Qf5 {[%clk 0:00:09]}  Kh8 {[%clk 0:00:07]} 132. Qg5 {[%clk 0:00:09]}  Kh7 {[%clk 0:00:07]} 133. Bc4 {[%clk 0:00:09]}  Kh8 {[%clk 0:00:08]} 134. Qg8# {[%clk 0:00:10]} 1-0


[Site "https://www.chess.com"]

[Event "Titled Tuesday Blitz June 13 Early 2023"]
[White "Ezat, Mohamed"]
[Black "Priasmoro, Novendra"]
[WhiteFideId "10600906"]
[BlackFideId "7105029"]
[WhiteElo "2372"]
[BlackElo "2412"]
[Result "0-1"]
[Round "8"]
[TimeControl "180+2"]
[Date "2023.06.13"]
[WhiteClock "0:00:00"]
[BlackClock "0:00:08"]
[Board "33"]

1. d4 {[%clk 0:03:00]}  Nf6 {[%clk 0:03:00]} 2. c4 {[%clk 0:03:01]}  e6 {[%clk 0:03:00]} 3. Nc3 {[%clk 0:03:01]}  d5 {[%clk 0:03:01]} 4. cxd5 {[%clk 0:03:00]}  Nxd5 {[%clk 0:03:02]} 5. e4 {[%clk 0:02:58]}  Nxc3 {[%clk 0:03:02]} 6. bxc3 {[%clk 0:02:59]}  c5 {[%clk 0:03:03]} 7. a3 {[%clk 0:03:00]}  Nc6 {[%clk 0:03:02]} 8. Nf3 {[%clk 0:02:59]}  Be7 {[%clk 0:03:02]} 9. Bd3 {[%clk 0:02:57]}  cxd4 {[%clk 0:03:02]} 10. cxd4 {[%clk 0:02:57]}  O-O {[%clk 0:03:03]} 11. e5 {[%clk 0:02:57]}  g6 {[%clk 0:02:33]} 12. Be3 {[%clk 0:02:51]}  b6 {[%clk 0:02:29]} 13. h4 {[%clk 0:02:50]}  Bb7 {[%clk 0:02:21]} 14. h5 {[%clk 0:02:50]}  g5 {[%clk 0:02:16]} 15. h6 {[%clk 0:02:45]}  Kh8 {[%clk 0:02:15]} 16. Be4 {[%clk 0:02:39]}  Na5 {[%clk 0:01:56]} 17. Bxb7 {[%clk 0:02:38]}  Nxb7 {[%clk 0:01:57]} 18. Qd2 {[%clk 0:02:35]}  Na5 {[%clk 0:01:56]} 19. Bxg5 {[%clk 0:02:32]}  Nb3 {[%clk 0:01:55]} 20. Bxe7 {[%clk 0:01:47]}  Qxe7 {[%clk 0:01:56]} 21. Qb2 {[%clk 0:01:46]}  Nxa1 {[%clk 0:01:52]} 22. Qxa1 {[%clk 0:01:47]}  Rac8 {[%clk 0:01:50]} 23. O-O {[%clk 0:01:42]}  Rg8 {[%clk 0:01:50]} 24. Rc1 {[%clk 0:01:40]}  Rcd8 {[%clk 0:01:39]} 25. Rc4 {[%clk 0:01:34]}  Qb7 {[%clk 0:01:36]} 26. Qc3 {[%clk 0:01:30]}  Qe4 {[%clk 0:01:28]} 27. Rc7 {[%clk 0:01:20]}  Qb1+ {[%clk 0:01:21]} 28. Qe1 {[%clk 0:01:10]}  Qg6 {[%clk 0:01:14]} 29. g3 {[%clk 0:01:10]}  Qh5 {[%clk 0:01:08]} 30. Qe3 {[%clk 0:01:09]}  Rc8 {[%clk 0:01:07]} 31. Qf4 {[%clk 0:01:05]}  f5 {[%clk 0:00:36]} 32. exf6 {[%clk 0:00:52]}  Rxc7 {[%clk 0:00:37]} 33. Qxc7 {[%clk 0:00:51]}  Qxh6 {[%clk 0:00:18]} 34. Qe5 {[%clk 0:00:48]}  Rf8 {[%clk 0:00:15]} 35. f7+ {[%clk 0:00:27]}  Qg7 {[%clk 0:00:15]} 36. Qe4 {[%clk 0:00:13]}  Qg6 {[%clk 0:00:11]} 37. Qe5+ {[%clk 0:00:05]}  Qg7 {[%clk 0:00:12]} 38. Qe4 {[%clk 0:00:06]}  Qxf7 {[%clk 0:00:10]} 39. Kg2 {[%clk 0:00:05]}  Qxf3+ {[%clk 0:00:08]} 40. Qxf3 {[%clk 0:00:05]}  Rxf3 {[%clk 0:00:09]} 41. Kxf3 {[%clk 0:00:06]}  Kg7 {[%clk 0:00:10]} 42. Ke4 {[%clk 0:00:04]}  Kf6 {[%clk 0:00:11]} 43. g4 {[%clk 0:00:04]}  b5 {[%clk 0:00:11]} 44. f4 {[%clk 0:00:04]}  a5 {[%clk 0:00:10]} 45. Kd3 {[%clk 0:00:03]}  h6 {[%clk 0:00:08]} 46. Kc3 {[%clk 0:00:03]}  Ke7 {[%clk 0:00:08]} 47. Kd3 {[%clk 0:00:04]}  Kd6 {[%clk 0:00:09]} 48. Kc3 {[%clk 0:00:04]}  Kd5 {[%clk 0:00:09]} 49. Kd3 {[%clk 0:00:00]}  b4 {[%clk 0:00:08]} 0-1


[Site "https://www.chess.com"]

[Event "Titled Tuesday Blitz June 13 Early 2023"]
[White "Skawinski, Arkadiusz"]
[Black "Le, Tuan Minh"]
[WhiteFideId "1126415"]
[BlackFideId "12401153"]
[WhiteElo "2218"]
[BlackElo "2566"]
[Result "0-1"]
[Round "8"]
[TimeControl "180+2"]
[Date "2023.06.13"]
[WhiteClock "0:02:17"]
[BlackClock "0:02:38"]
[Board "36"]

1. e4 {[%clk 0:03:00]}  c5 {[%clk 0:02:55]} 2. Nf3 {[%clk 0:03:00]}  Nf6 {[%clk 0:02:55]} 3. e5 {[%clk 0:03:00]}  Nd5 {[%clk 0:02:56]} 4. Nc3 {[%clk 0:03:01]}  e6 {[%clk 0:02:55]} 5. Nxd5 {[%clk 0:03:00]}  exd5 {[%clk 0:02:55]} 6. d4 {[%clk 0:03:01]}  Nc6 {[%clk 0:02:55]} 7. dxc5 {[%clk 0:02:57]}  Bxc5 {[%clk 0:02:56]} 8. Qxd5 {[%clk 0:02:57]}  d6 {[%clk 0:02:56]} 9. exd6 {[%clk 0:02:55]}  Qb6 {[%clk 0:02:56]} 10. Qe4+ {[%clk 0:02:45]}  Be6 {[%clk 0:02:55]} 11. Bc4 {[%clk 0:02:45]}  Bxf2+ {[%clk 0:02:55]} 12. Kf1 {[%clk 0:02:45]}  O-O {[%clk 0:02:46]} 13. Bxe6 {[%clk 0:02:36]}  fxe6 {[%clk 0:02:47]} 14. Qxe6+ {[%clk 0:02:37]}  Kh8 {[%clk 0:02:46]} 15. Bg5 {[%clk 0:02:37]}  Bd4 {[%clk 0:02:38]} 16. Re1 {[%clk 0:02:17]}  Qb5+ {[%clk 0:02:38]} 0-1


[Site "https://www.chess.com"]

[Event "Titled Tuesday Blitz June 13 Early 2023"]
[White "Krzyzanowski, Marcin"]
[Black "Wadsworth, Matthew J"]
[WhiteFideId "1132199"]
[BlackFideId "415804"]
[WhiteElo "2471"]
[BlackElo "2347"]
[Result "1-0"]
[Round "8"]
[TimeControl "180+2"]
[Date "2023.06.13"]
[WhiteClock "0:00:29"]
[BlackClock "0:00:00"]
[Board "40"]

1. Nf3 {[%clk 0:03:00]}  d5 {[%clk 0:02:57]} 2. g3 {[%clk 0:03:01]}  Nd7 {[%clk 0:02:56]} 3. d4 {[%clk 0:02:56]}  Nb6 {[%clk 0:02:55]} 4. Bg2 {[%clk 0:02:52]}  Nf6 {[%clk 0:02:50]} 5. c3 {[%clk 0:02:50]}  Bf5 {[%clk 0:02:50]} 6. Nh4 {[%clk 0:02:45]}  e6 {[%clk 0:02:46]} 7. Nxf5 {[%clk 0:02:43]}  exf5 {[%clk 0:02:46]} 8. O-O {[%clk 0:02:43]}  Bd6 {[%clk 0:02:20]} 9. a4 {[%clk 0:02:42]}  a5 {[%clk 0:02:19]} 10. Na3 {[%clk 0:02:38]}  c6 {[%clk 0:02:16]} 11. Nc2 {[%clk 0:02:35]}  O-O {[%clk 0:02:08]} 12. b3 {[%clk 0:02:31]}  Re8 {[%clk 0:02:06]} 13. Qd3 {[%clk 0:02:30]}  g6 {[%clk 0:02:02]} 14. Bg5 {[%clk 0:02:27]}  Be7 {[%clk 0:01:55]} 15. f3 {[%clk 0:02:24]}  Nfd7 {[%clk 0:01:48]} 16. Bh6 {[%clk 0:02:15]}  Bg5 {[%clk 0:01:46]} 17. Bxg5 {[%clk 0:02:15]}  Qxg5 {[%clk 0:01:47]} 18. Rae1 {[%clk 0:02:14]}  Nf6 {[%clk 0:01:41]} 19. e3 {[%clk 0:02:02]}  h5 {[%clk 0:01:38]} 20. c4 {[%clk 0:01:39]}  h4 {[%clk 0:01:34]} 21. c5 {[%clk 0:01:35]}  Nbd7 {[%clk 0:01:32]} 22. gxh4 {[%clk 0:01:33]}  Qxh4 {[%clk 0:01:31]} 23. Qd2 {[%clk 0:01:33]}  Kg7 {[%clk 0:01:27]} 24. Qf2 {[%clk 0:01:32]}  Rh8 {[%clk 0:01:23]} 25. Qxh4 {[%clk 0:01:31]}  Rxh4 {[%clk 0:01:22]} 26. Re2 {[%clk 0:01:30]}  Rah8 {[%clk 0:01:21]} 27. Bh1 {[%clk 0:01:12]}  Nf8 {[%clk 0:01:19]} 28. Ne1 {[%clk 0:01:06]}  Ne6 {[%clk 0:01:17]} 29. f4 {[%clk 0:00:59]}  Ng4 {[%clk 0:01:08]} 30. Nf3 {[%clk 0:00:58]}  R4h5 {[%clk 0:00:54]} 31. Rb1 {[%clk 0:00:55]}  Ra8 {[%clk 0:00:31]} 32. b4 {[%clk 0:00:55]}  axb4 {[%clk 0:00:31]} 33. Rxb4 {[%clk 0:00:55]}  Nd8 {[%clk 0:00:30]} 34. Ne5 {[%clk 0:00:53]}  Nf6 {[%clk 0:00:27]} 35. Bf3 {[%clk 0:00:52]}  Rh8 {[%clk 0:00:24]} 36. Reb2 {[%clk 0:00:52]}  Ra7 {[%clk 0:00:20]} 37. Kg2 {[%clk 0:00:52]}  Ne4 {[%clk 0:00:19]} 38. Bxe4 {[%clk 0:00:47]}  fxe4 {[%clk 0:00:19]} 39. Nd7 {[%clk 0:00:45]}  f6 {[%clk 0:00:18]} 40. Ra2 {[%clk 0:00:43]}  Nf7 {[%clk 0:00:08]} 41. a5 {[%clk 0:00:41]}  Rha8 {[%clk 0:00:08]} 42. Rab2 {[%clk 0:00:39]}  Rxa5 {[%clk 0:00:07]} 43. Rxb7 {[%clk 0:00:39]}  R8a7 {[%clk 0:00:06]} 44. Nb8 {[%clk 0:00:38]}  Rxb7 {[%clk 0:00:06]} 45. Rxb7 {[%clk 0:00:39]}  Ra2+ {[%clk 0:00:06]} 46. Kg3 {[%clk 0:00:37]}  Ra3 {[%clk 0:00:06]} 47. Kf2 {[%clk 0:00:30]}  Ra2+ {[%clk 0:00:06]} 48. Kf1 {[%clk 0:00:29]}  Ra1+ {[%clk 0:00:06]} 49. Ke2 {[%clk 0:00:29]}  Ra2+ {[%clk 0:00:07]} 50. Kd1 {[%clk 0:00:30]}  Ra1+ {[%clk 0:00:01]} 51. Kc2 {[%clk 0:00:29]}  Ra2+ {[%clk 0:00:02]} 52. Kc1 {[%clk 0:00:28]}  Rxh2 {[%clk 0:00:00]} 53. Nxc6 {[%clk 0:00:29]} 1-0


[Site "https://www.chess.com"]

[Event "Titled Tuesday Blitz June 13 Early 2023"]
[White "Camilla_Lee"]
[Black "Rahman, Masruri"]
[BlackFideId "7101163"]
[WhiteElo "2595"]
[BlackElo "2256"]
[Result "0-1"]
[Round "8"]
[TimeControl "180+2"]
[Date "2023.06.13"]
[WhiteClock "0:00:06"]
[BlackClock "0:00:19"]
[Board "43"]

1. e4 {[%clk 0:02:57]}  e6 {[%clk 0:02:59]} 2. d4 {[%clk 0:02:57]}  d5 {[%clk 0:03:00]} 3. e5 {[%clk 0:02:58]}  c5 {[%clk 0:02:59]} 4. c3 {[%clk 0:02:59]}  Nc6 {[%clk 0:03:00]} 5. Nf3 {[%clk 0:02:59]}  Qb6 {[%clk 0:03:00]} 6. a3 {[%clk 0:03:00]}  Nh6 {[%clk 0:03:01]} 7. b4 {[%clk 0:03:00]}  cxd4 {[%clk 0:03:01]} 8. cxd4 {[%clk 0:03:00]}  Nf5 {[%clk 0:03:01]} 9. Bb2 {[%clk 0:03:01]}  a5 {[%clk 0:02:55]} 10. b5 {[%clk 0:03:00]}  a4 {[%clk 0:02:55]} 11. g4 {[%clk 0:02:40]}  Nh6 {[%clk 0:02:51]} 12. h3 {[%clk 0:02:40]}  Na5 {[%clk 0:02:43]} 13. Nbd2 {[%clk 0:02:33]}  Bd7 {[%clk 0:02:37]} 14. Qxa4 {[%clk 0:02:24]}  Be7 {[%clk 0:02:36]} 15. Bd3 {[%clk 0:02:13]}  O-O {[%clk 0:02:31]} 16. O-O {[%clk 0:02:09]}  Rfc8 {[%clk 0:02:20]} 17. Rfc1 {[%clk 0:02:06]}  Nc4 {[%clk 0:02:16]} 18. Qb3 {[%clk 0:02:04]}  Qxb5 {[%clk 0:01:48]} 19. Qxb5 {[%clk 0:01:25]}  Bxb5 {[%clk 0:01:49]} 20. a4 {[%clk 0:01:23]}  Bxa4 {[%clk 0:01:10]} 21. Bxc4 {[%clk 0:01:12]}  dxc4 {[%clk 0:01:08]} 22. Nxc4 {[%clk 0:01:05]}  Bc6 {[%clk 0:01:00]} 23. Nb6 {[%clk 0:01:01]}  Rxa1 {[%clk 0:00:57]} 24. Rxa1 {[%clk 0:00:45]}  Rd8 {[%clk 0:00:44]} 25. Nd2 {[%clk 0:00:44]}  f5 {[%clk 0:00:40]} 26. f3 {[%clk 0:00:29]}  Bg5 {[%clk 0:00:39]} 27. Ndc4 {[%clk 0:00:25]}  Bxf3 {[%clk 0:00:35]} 28. Kf2 {[%clk 0:00:18]}  fxg4 {[%clk 0:00:35]} 29. hxg4 {[%clk 0:00:16]}  Bxg4 {[%clk 0:00:34]} 30. Nd6 {[%clk 0:00:16]}  Rf8+ {[%clk 0:00:31]} 31. Kg3 {[%clk 0:00:13]}  Rf3+ {[%clk 0:00:29]} 32. Kg2 {[%clk 0:00:13]}  Rf8 {[%clk 0:00:25]} 33. Ba3 {[%clk 0:00:10]}  Be3 {[%clk 0:00:21]} 34. Bc5 {[%clk 0:00:10]}  Nf5 {[%clk 0:00:18]} 35. Nxf5 {[%clk 0:00:08]}  Rxf5 {[%clk 0:00:19]} 36. Ra8+ {[%clk 0:00:08]}  Kf7 {[%clk 0:00:19]} 37. Rb8 {[%clk 0:00:07]}  Kg6 {[%clk 0:00:18]} 38. Rxb7 {[%clk 0:00:07]}  Bf3+ {[%clk 0:00:19]} 39. Kg3 {[%clk 0:00:06]}  Bxb7 {[%clk 0:00:19]} 0-1


[Site "https://www.chess.com"]

[Event "Titled Tuesday Blitz June 13 Early 2023"]
[White "Budrewicz, Krzysztof"]
[Black "Sattarov, Bobir"]
[WhiteFideId "1127950"]
[BlackFideId "14203081"]
[WhiteElo "2230"]
[BlackElo "2351"]
[Result "1-0"]
[Round "8"]
[TimeControl "180+2"]
[Date "2023.06.13"]
[WhiteClock "0:00:57"]
[BlackClock "0:00:00"]
[Board "45"]

1. d4 {[%clk 0:03:00]}  Nf6 {[%clk 0:02:59]} 2. c4 {[%clk 0:03:00]}  e6 {[%clk 0:02:59]} 3. Nf3 {[%clk 0:03:00]}  d5 {[%clk 0:02:58]} 4. Nc3 {[%clk 0:03:00]}  Bb4 {[%clk 0:02:53]} 5. Bd2 {[%clk 0:02:56]}  O-O {[%clk 0:02:51]} 6. e3 {[%clk 0:02:56]}  Nc6 {[%clk 0:02:47]} 7. Bd3 {[%clk 0:02:55]}  Qe7 {[%clk 0:02:14]} 8. a3 {[%clk 0:02:51]}  Bxc3 {[%clk 0:02:08]} 9. Bxc3 {[%clk 0:02:51]}  Ne4 {[%clk 0:02:08]} 10. Bxe4 {[%clk 0:02:51]}  dxe4 {[%clk 0:02:08]} 11. Nd2 {[%clk 0:02:48]}  f5 {[%clk 0:02:07]} 12. O-O {[%clk 0:02:48]}  Rd8 {[%clk 0:01:52]} 13. Qe2 {[%clk 0:02:46]}  b6 {[%clk 0:01:50]} 14. b4 {[%clk 0:02:44]}  Bb7 {[%clk 0:01:49]} 15. b5 {[%clk 0:02:38]}  Nb8 {[%clk 0:01:49]} 16. f3 {[%clk 0:02:35]}  exf3 {[%clk 0:01:48]} 17. gxf3 {[%clk 0:02:33]}  Nd7 {[%clk 0:01:44]} 18. e4 {[%clk 0:02:32]}  Re8 {[%clk 0:01:09]} 19. a4 {[%clk 0:02:14]}  c5 {[%clk 0:00:57]} 20. bxc6 {[%clk 0:02:07]}  Bxc6 {[%clk 0:00:55]} 21. a5 {[%clk 0:02:08]}  Rac8 {[%clk 0:00:52]} 22. axb6 {[%clk 0:02:08]}  axb6 {[%clk 0:00:51]} 23. Ra7 {[%clk 0:02:07]}  Qg5+ {[%clk 0:00:48]} 24. Kh1 {[%clk 0:02:03]}  Re7 {[%clk 0:00:41]} 25. Rg1 {[%clk 0:02:03]}  Qh6 {[%clk 0:00:40]} 26. Qg2 {[%clk 0:01:54]}  fxe4 {[%clk 0:00:35]} 27. fxe4 {[%clk 0:01:54]}  Ra8 {[%clk 0:00:28]} 28. Rxa8+ {[%clk 0:01:48]}  Bxa8 {[%clk 0:00:29]} 29. d5 {[%clk 0:01:49]}  exd5 {[%clk 0:00:27]} 30. exd5 {[%clk 0:01:41]}  b5 {[%clk 0:00:26]} 31. Ra1 {[%clk 0:01:24]}  Nb6 {[%clk 0:00:26]} 32. Bd4 {[%clk 0:01:18]}  Bb7 {[%clk 0:00:17]} 33. Bc5 {[%clk 0:01:16]}  Rf7 {[%clk 0:00:13]} 34. Re1 {[%clk 0:01:09]}  Nd7 {[%clk 0:00:02]} 35. Be3 {[%clk 0:01:10]}  Qh5 {[%clk 0:00:00]} 36. Rb1 {[%clk 0:00:57]} 1-0


[Site "https://www.chess.com"]

[Event "Titled Tuesday Blitz June 13 Early 2023"]
[White "Maximov, Dmitry"]
[Black "Mendez Fortes, Eduardo Jesus"]
[WhiteFideId "14105659"]
[BlackFideId "3502376"]
[WhiteElo "2494"]
[BlackElo "2307"]
[Result "1-0"]
[Round "8"]
[TimeControl "180+2"]
[Date "2023.06.13"]
[WhiteClock "0:00:35"]
[BlackClock "0:00:18"]
[Board "46"]

1. e4 {[%clk 0:03:00]}  c5 {[%clk 0:02:54]} 2. Nf3 {[%clk 0:03:01]}  d6 {[%clk 0:02:54]} 3. c3 {[%clk 0:03:01]}  Nf6 {[%clk 0:02:53]} 4. Bc4 {[%clk 0:03:01]}  Nc6 {[%clk 0:02:47]} 5. d3 {[%clk 0:03:01]}  e5 {[%clk 0:02:45]} 6. Ng5 {[%clk 0:02:57]}  d5 {[%clk 0:02:45]} 7. exd5 {[%clk 0:02:57]}  Na5 {[%clk 0:02:46]} 8. O-O {[%clk 0:02:49]}  Nxc4 {[%clk 0:02:43]} 9. dxc4 {[%clk 0:02:48]}  h6 {[%clk 0:02:40]} 10. Nf3 {[%clk 0:02:47]}  Bg4 {[%clk 0:02:40]} 11. h3 {[%clk 0:02:46]}  Bh5 {[%clk 0:02:39]} 12. Re1 {[%clk 0:02:44]}  Bd6 {[%clk 0:02:38]} 13. Bf4 {[%clk 0:02:36]}  O-O {[%clk 0:02:14]} 14. Bxe5 {[%clk 0:02:35]}  Bxf3 {[%clk 0:02:08]} 15. Bxf6 {[%clk 0:02:07]}  Qxf6 {[%clk 0:02:05]} 16. Qxf3 {[%clk 0:02:07]}  Qh4 {[%clk 0:02:04]} 17. Nd2 {[%clk 0:02:06]}  Rfe8 {[%clk 0:02:03]} 18. Re4 {[%clk 0:02:02]}  Qg5 {[%clk 0:02:02]} 19. Rae1 {[%clk 0:02:01]}  Rxe4 {[%clk 0:02:02]} 20. Nxe4 {[%clk 0:02:00]}  Qe5 {[%clk 0:01:54]} 21. Kf1 {[%clk 0:01:51]}  Qh2 {[%clk 0:01:50]} 22. Nxd6 {[%clk 0:01:47]}  Qxd6 {[%clk 0:01:47]} 23. Qg3 {[%clk 0:01:47]}  Qa6 {[%clk 0:01:47]} 24. Qd3 {[%clk 0:01:42]}  Qxa2 {[%clk 0:01:47]} 25. d6 {[%clk 0:01:42]}  Qa4 {[%clk 0:01:41]} 26. d7 {[%clk 0:01:39]}  Rd8 {[%clk 0:01:41]} 27. Re7 {[%clk 0:01:38]}  Kf8 {[%clk 0:01:36]} 28. Qd6 {[%clk 0:01:34]}  Kg8 {[%clk 0:01:34]} 29. Kg1 {[%clk 0:01:31]}  Kh7 {[%clk 0:00:48]} 30. Qc7 {[%clk 0:01:25]}  Qd1+ {[%clk 0:00:46]} 31. Kh2 {[%clk 0:01:24]}  Qd2 {[%clk 0:00:43]} 32. Rxf7 {[%clk 0:01:11]}  Rg8 {[%clk 0:00:39]} 33. Qxc5 {[%clk 0:01:04]}  Kh8 {[%clk 0:00:26]} 34. Qd4 {[%clk 0:00:58]}  Qg5 {[%clk 0:00:25]} 35. f4 {[%clk 0:00:57]}  Qg6 {[%clk 0:00:25]} 36. d8=Q {[%clk 0:00:52]}  Qxf7 {[%clk 0:00:25]} 37. Q8d6 {[%clk 0:00:51]}  Re8 {[%clk 0:00:24]} 38. Qxh6+ {[%clk 0:00:49]}  Kg8 {[%clk 0:00:24]} 39. Qg5 {[%clk 0:00:49]}  Re6 {[%clk 0:00:22]} 40. f5 {[%clk 0:00:46]}  Rf6 {[%clk 0:00:22]} 41. Qd8+ {[%clk 0:00:44]}  Kh7 {[%clk 0:00:22]} 42. Qd5 {[%clk 0:00:38]}  Qe7 {[%clk 0:00:18]} 43. Qh4+ {[%clk 0:00:35]} 1-0


[Site "https://www.chess.com"]